Cogmind - Beta 11 @@@ ROGUE MODE // 2022.04.01 @ 20:12:14 Player: Turbografx16 Result: Self-destructed Performance ------------- Evolutions (2) 1000 Regions Visited (6) 1200 Robots Destroyed (32) 160 Value Destroyed (817) 817 Prototype IDs (0) 0 Alien Tech Used (0) 0 Bonus (0) 0 TOTAL SCORE: 3177 Bonus ------- None Cogmind --------- Core Integrity 513/550 Matter 280/300 Energy 58/160 System Corruption 0% Temperature Warm (127) Movement Walking (120) Location -8/Materials Parts ------- > --- POWER (1) -------- Light Nuclear Core > --- PROPULSION (4) --- Aluminum Leg Carbon-fiber Leg Carbon-fiber Leg > --- UTILITY (4) ------ Small Storage Unit Targeting Computer Improved Targeting Computer > --- WEAPON (2) ------- EM Pulse Cannon EM Pulse Cannon > --- INVENTORY (8) ---- Light Ion Engine Light Ion Engine Advanced Treads Aluminum Leg Hardened Light Armor Plating Grenade Launcher Datajack Peak State ------------ > --- POWER ------------ Light Nuclear Core > --- PROPULSION ------- Aluminum Leg Aluminum Leg Carbon-fiber Leg Carbon-fiber Leg > --- UTILITY ---------- Small Storage Unit Targeting Computer Improved Targeting Computer > --- WEAPON ----------- EM Pulse Cannon EM Pulse Cannon > --- INVENTORY -------- Light Ion Engine Light Ion Engine Advanced Treads Aluminum Leg Hardened Light Armor Plating Grenade Launcher Datajack [Rating: 22] Favorites ----------- Power Light Ion Engine Engine Light Ion Engine Power Core Light Nuclear Core Propulsion Aluminum Leg Treads Light Treads Leg Aluminum Leg Utility Small Storage Unit Storage Small Storage Unit Processor Targeting Computer Weapon EM Pulse Gun Energy Gun EM Pulse Gun Energy Cannon EM Pulse Cannon Launcher Grenade Launcher Build | -11 -10 -9 -9 -9 -8 -8 ------- Run | Scr Mat Mat Min Exi Min Mat Slots Evolved 4 | . . 2 . . . 2 Power . | . . . . . . . Propulsion 2 | . . 1 . . . 1 Utility 2 | . . 1 . . . 1 Weapon . | . . . . . . . Parts Attached 23 | . 4 6 3 . 7 3 Power 2 | . . . 1 . 1 . Engine 1 | . . . 1 . . . Core 1 | . . . . . 1 . Reactor . | . . . . . . . Propulsion 8 | . . . 2 . 5 1 Treads 3 | . . . 2 . 1 . Leg 5 | . . . . . 4 1 Wheel . | . . . . . . . Hover . | . . . . . . . Flight . | . . . . . . . Utility 4 | . 3 1 . . . . Device . | . . . . . . . Storage 2 | . 2 . . . . . Processor 2 | . 1 1 . . . . Hackware . | . . . . . . . Protection . | . . . . . . . Artifact . | . . . . . . . Weapon 9 | . 1 5 . . 1 2 Energy Gun 5 | . 1 4 . . . . Energy Cannon 2 | . . . . . . 2 Ballistic Gun . | . . . . . . . Ballistic Cannon . | . . . . . . . Launcher 2 | . . 1 . . 1 . Special Weapon . | . . . . . . . Impact Weapon . | . . . . . . . Slashing Weapon . | . . . . . . . Piercing Weapon . | . . . . . . . Special Melee Weapon . | . . . . . . . Unidentified Prototypes . | . . . . . . . Parts Lost 10 | . 1 3 1 . 4 1 Power 1 | . . . . . 1 . Propulsion 3 | . . . 1 . 1 1 Utility . | . . . . . . . Weapon 6 | . 1 3 . . 2 . Highest Loss Streak 3 | . 1 3 1 . 3 1 To Critical Strikes . | . . . . . . . Average Slot Usage (%) 94 | . 93 85 98 100 95 81 Engine 10 | . 14 11 11 11 8 . Treads 10 | . . . 20 22 1 . Leg 19 | . 28 22 11 11 31 33 Storage 11 | . 14 11 11 11 11 9 Processor 19 | . 8 19 22 22 22 18 Energy Gun 20 | . 28 21 22 22 14 . Naked Turns . | . . . . . . . Heaviest Build 22 | 12 12 12 12 12 13 22 Greatest Support 50 | 20 20 20 40 40 40 50 Greatest Overweight (x) 3 | . . . . . 3 . Average Overweight (x) . | . . . . . . . Largest Inventory Capacity 20 | . 20 8 8 8 8 8 Average Capacity 8 | . 8 8 8 8 8 8 Most Carried 9 | . 9 7 6 5 7 7 Average Carried 5 | . 7 6 5 5 6 5 Final Capacity 8 | 8 8 8 8 8 8 8 Final Carried 8 | 6 8 6 5 5 5 7 Class Distribution -------------------- 82% | Mutant 17% | Scavenger-Mutant Dominant Class ---------------- Mutant | -10/Materials Mutant | -9/Materials Mutant | -9/Mines Mutant | -9/Exiles Scavenger-Mutant | -8/Mines Scavenger-Mutant | -8/Materials Resources | -11 -10 -9 -9 -9 -8 -8 ----------- Run | Scr Mat Mat Min Exi Min Mat Matter Collected 430 | 185 32 73 30 . 85 25 Remotely . | . . . . . . . Salvage Created 979 | . 98 259 236 . 361 25 Parts 60 | . 12 15 14 . 18 1 Haulers Intercepted . | . . . . . . . Recyclers Shooed . | . . . . . . . Parts Field Recycled . | . . . . . . . Retrieved Matter . | . . . . . . . Parts Self-Destructed . | . . . . . . . Prevented . | . . . . . . . Kills | -11 -10 -9 -9 -9 -8 -8 ------- Run | Scr Mat Mat Min Exi Min Mat Combat Hostiles Destroyed 27 | . 6 8 6 . 6 1 Guns 23 | . 6 7 5 . 5 . AOE 3 | . . . 1 . 1 1 Classes Destroyed 9 | . 1 2 2 . 3 1 Worker 2 | . . . . . 2 . Tunneler 1 | . . . . . 1 . Recycler 1 | . . . 1 . . . Operator 1 | . . . . . . 1 Swarmer 13 | . 6 3 3 . . 1 Grunt 10 | . . 4 2 . 4 . Duelist 2 | . . . 1 . 1 . Sentry 1 | . . 1 . . . . Hunter 1 | . . . . . 1 . Best Kill Streak 5 | . 3 5 3 . 5 1 Combat Bots Only 5 | . 3 5 3 . 3 1 Max Kills in Single Turn 2 | . 2 1 2 . 2 1 Gunslinging 1 | . 1 . 1 . . . Exploded 1 | . . . 1 . 1 1 Melee . | . . . . . . . Uniques/NPCs Destroyed . | . . . . . . . Combat | -11 -10 -9 -9 -9 -8 -8 -------- Run | Scr Mat Mat Min Exi Min Mat Damage Taken 1287 | . 175 308 220 . 445 139 Core 287 | . 23 86 55 . 86 37 Absorbed by Shields . | . . . . . . . Core Remaining (%) 77 | 100 90 . . . 43 . Volleys Fired 68 | . 9 21 14 . 19 5 Largest 2 | . 2 2 2 . 2 2 Hottest 126 | . 80 80 80 . 80 126 Shots Fired 131 | . 18 41 28 . 35 9 Gun 119 | . 18 41 28 . 32 . Cannon 8 | . . . . . . 8 Launcher 4 | . . . . . 3 1 Special . | . . . . . . . Kinetic . | . . . . . . . Thermal . | . . . . . . . Explosive 4 | . . . . . 3 1 Electromagnetic 127 | . 18 41 28 . 32 8 Robot Hit Streak 16 | . 4 10 12 . 16 9 Robot Miss Streak 3 | . 3 2 1 . 2 2 Penetration Max . | . . . . . . . Secondary Targets 8 | . 1 2 2 . 3 . Max Gunslinging Chain 1 | . 1 1 1 . 1 . Shots Hit Robots 97 | . 9 31 23 . 28 6 Core Hits 48 | . 6 10 9 . 21 2 Critical Kills . | . . . . . . . Critical Parts Destroyed . | . . . . . . . Critical Strikes 3 | . . 2 1 . . . Corrupt 3 | . . 2 1 . . . Melee Attacks . | . . . . . . . Impact . | . . . . . . . Slashing . | . . . . . . . Piercing . | . . . . . . . Sneak Attacks . | . . . . . . . Combat Hostiles . | . . . . . . . Follow-up Attacks . | . . . . . . . Damage Inflicted 1718 | . 101 512 315 . 614 176 Guns 1120 | . 101 412 272 . 335 . Cannons 113 | . . . . . . 113 Explosions 479 | . . 100 37 . 279 63 Melee . | . . . . . . . Ramming 6 | . . . 6 . . . Kinetic . | . . . . . . . Thermal 172 | . . 100 37 . . 35 Explosive 307 | . . . . . 279 28 Electromagnetic 1233 | . 101 412 272 . 335 113 Impact . | . . . . . . . Slashing . | . . . . . . . Piercing . | . . . . . . . Highest Corruption . | . . . . . . . Average Corruption . | . . . . . . . Corruption Purged . | . . . . . . . Corruption Blocked . | . . . . . . . Overload Shots . | . . . . . . . Overflow Damage 8 | . . 3 . . 4 1 Projectiles 1 | . . . . . . 1 Explosions 7 | . . 3 . . 4 . Melee . | . . . . . . . Knockbacks . | . . . . . . . Impact . | . . . . . . . Kinetic . | . . . . . . . Secondary . | . . . . . . . Self-Inflicted Damage 172 | . . 48 8 . 67 49 Shots 8 | . . 2 1 . 3 2 Rammed 1 | . . . 1 . . . Targets Rammed 2 | . . . 2 . . . Kicked . | . . . . . . . Crushed 1 | . . . 1 . . . Highest Temperature 180 | . 90 168 105 . 180 127 Average Temperature 50 | . 43 51 36 . 58 68 Received Heat Transfer 315 | . . 84 42 . 162 27 Siege Activations . | . . . . . . . Robots Corrupted 1 | . . 1 . . . . Combat Hostiles 1 | . . 1 . . . . Parts Fried 5 | . . 1 3 . . 1 Impact Corruptions . | . . . . . . . Robots Melted . | . . . . . . . Combat Hostiles . | . . . . . . . Parts Melted . | . . . . . . . Heat Transferred 200 | . . 150 . . . 50 Parts Sabotaged . | . . . . . . . Parts Stolen . | . . . . . . . Parts Stripped . | . . . . . . . Power Chain Reactions 5 | . . 3 1 . . 1 Missiles Intercepted . | . . . . . . . Alert | -11 -10 -9 -9 -9 -8 -8 ------- Run | Scr Mat Mat Min Exi Min Mat Peak Influence 332 | . 170 332 297 . 203 189 Initial 129 | . . 67 129 . . 78 Average 165 | . 49 200 261 . 125 145 Maximum Alert Level 1 | . . 1 1 . 1 . Low Security (%) 66 | . 100 54 24 . 86 100 Level 1 33 | . . 45 75 . 13 . Level 2 . | . . . . . . . Level 3 . | . . . . . . . Level 4 . | . . . . . . . Level 5 . | . . . . . . . High Security . | . . . . . . . Max Security . | . . . . . . . Squads Dispatched 3 | . . 1 . . . 2 Investigation . | . . . . . . . Extermination . | . . . . . . . Reinforcement 3 | . . 1 . . . 2 Assault . | . . . . . . . Garrison . | . . . . . . . Intercept . | . . . . . . . Searches Triggered . | . . . . . . . Construction Impeded . | . . . . . . . Haulers Reinforced . | . . . . . . . Active Scanning Responses . | . . . . . . . Cargo Convoy Interrupts . | . . . . . . . Stealth | -11 -10 -9 -9 -9 -8 -8 --------- Run | Scr Mat Mat Min Exi Min Mat Distress Signals 3 | . . 2 . . . 1 Communications Jammed . | . . . . . . . Distress Signals . | . . . . . . . Times Spotted 39 | . 9 12 4 . 8 6 Peak Tracking Total 7 | . 4 7 3 . 3 5 Tactical Retreats 3 | . 1 . . . 2 . Traps | -11 -10 -9 -9 -9 -8 -8 ------- Run | Scr Mat Mat Min Exi Min Mat Traps Triggered . | . . . . . . . Indirectly . | . . . . . . . Trap Hack Attempts . | . . . . . . . Triggered . | . . . . . . . Disarmed . | . . . . . . . Reprogrammed . | . . . . . . . Reused . | . . . . . . . Traps Extracted . | . . . . . . . Installed . | . . . . . . . Triggered . | . . . . . . . Machines | -11 -10 -9 -9 -9 -8 -8 ---------- Run | Scr Mat Mat Min Exi Min Mat Machines Disabled 7 | . . 3 . . . 4 Max in Single Turn 3 | . . 2 . . . 3 Machines Sabotaged . | . . . . . . . Garrisons Compromised . | . . . . . . . Overloaded Fab Kills . | . . . . . . . Hacking | -11 -10 -9 -9 -9 -8 -8 --------- Run | Scr Mat Mat Min Exi Min Mat Machines Accessed 6 | . 3 3 . . . . Terminals 5 | . 2 3 . . . . Fabricators . | . . . . . . . Repair Stations . | . . . . . . . Recycling Units 1 | . 1 . . . . . Scanalyzers . | . . . . . . . Garrison Access . | . . . . . . . Total Hacks 12 | . 7 5 . . . . Successful 5 | . 2 3 . . . . Failed 7 | . 5 2 . . . . Catastrophic 1 | . 1 . . . . . Database Lockouts . | . . . . . . . Manual 9 | . 4 5 . . . . Terminals 9 | . 4 5 . . . . Fabricators . | . . . . . . . Repair Stations . | . . . . . . . Recycling Units 3 | . 3 . . . . . Scanalyzers . | . . . . . . . Garrison Access . | . . . . . . . Terminal Hacks . | . . . . . . . Fabricator Hacks . | . . . . . . . Repair Station Hacks . | . . . . . . . Recycling Unit Hacks 1 | . 1 . . . . . Retrieve Components 1 | . 1 . . . . . Scanalyzer . | . . . . . . . Garrison Access Hacks . | . . . . . . . Unauthorized Hacks 4 | . 1 3 . . . . Terminals 4 | . 1 3 . . . . Botnet 4 | . 1 3 . . . . Fabricators . | . . . . . . . Repair Stations . | . . . . . . . Recycling Units . | . . . . . . . Scanalyzers . | . . . . . . . Garrison Access . | . . . . . . . Data Cores Recovered . | . . . . . . . Used . | . . . . . . . Hacking Detections 3 | . 2 1 . . . . Full Trace Events . | . . . . . . . Feedback Events . | . . . . . . . Feedback Blocked . | . . . . . . . Robot Schematics Acquired . | . . . . . . . Robots Built . | . . . . . . . Authchips . | . . . . . . . Time . | . . . . . . . Total Robot Build Rating . | . . . . . . . Part Schematics Acquired . | . . . . . . . Parts Built . | . . . . . . . Authchips . | . . . . . . . Time . | . . . . . . . Total Part Build Rating . | . . . . . . . Parts Repaired . | . . . . . . . Time . | . . . . . . . Parts Recycled . | . . . . . . . Recycled Matter . | . . . . . . . Retrieved Matter . | . . . . . . . Retrieved Components . | . . . . . . . Parts Scanalyzed . | . . . . . . . Part Schematics Acquired . | . . . . . . . Parts Damaged . | . . . . . . . Bothacking | -11 -10 -9 -9 -9 -8 -8 ------------ Run | Scr Mat Mat Min Exi Min Mat Used RIF Installer . | . . . . . . . Robots Hacked . | . . . . . . . Non-combat . | . . . . . . . Combat . | . . . . . . . Robot Hacks Applied . | . . . . . . . Relay Couplers Released . | . . . . . . . Fabnet Peak Effective % . | . . . . . . . Robots Rewired . | . . . . . . . Allies Hacked . | . . . . . . . Hacks Repelled . | . . . . . . . Allies | -11 -10 -9 -9 -9 -8 -8 -------- Run | Scr Mat Mat Min Exi Min Mat Total Allies . | . . . . . . . Largest Group . | . . . . . . . Highest-Rated Group . | . . . . . . . Highest-Rated Ally . | . . . . . . . Total Orders . | . . . . . . . Ally Attacks . | . . . . . . . Total Damage . | . . . . . . . Kills . | . . . . . . . Allies Corrupted . | . . . . . . . Allies Melted . | . . . . . . . Intel | -11 -10 -9 -9 -9 -8 -8 ------- Run | Scr Mat Mat Min Exi Min Mat Robot Analysis Total . | . . . . . . . Derelict Logs Recovered . | . . . . . . . Drone Launches . | . . . . . . . Drone Recoveries . | . . . . . . . Exploration | -11 -10 -9 -9 -9 -8 -8 ------------- Run | Scr Mat Mat Min Exi Min Mat Turns Passed 1938 | . 244 388 306 596 322 82 Spaces Moved 1181 | 1 168 248 161 373 183 47 Core 1 | . . . . . 1 . Treads 538 | . . . 161 373 4 . Legs 642 | 1 168 248 . . 178 47 Wheels . | . . . . . . . Hover . | . . . . . . . Flight . | . . . . . . . Fastest Speed 120 | 120 120 120 160 160 120 120 Average Speed 138 | 120 120 120 160 160 121 120 Slowest Speed 200 | 120 120 120 160 160 200 120 Overloaded Moves . | . . . . . . . Propulsion Burnouts . | . . . . . . . Robots Hopped . | . . . . . . . Cave-ins Triggered . | . . . . . . . Exploration Rate (%) 33 | 2 32 34 36 85 37 7 Regions Visited 6 Branch Regions 3 Pre-discovered Areas . | . . . . . . . Known Exits Taken . | . . . . . . . Unknown Exits Taken 6 | 1 1 1 1 1 1 . Scrap Searched 1 | . . . . . 1 . Spaces Dug . | . . . . . . . Terrain Destroyed 44 | . . 5 6 . 23 10 Melee . | . . . . . . . Projectile . | . . . . . . . AOE 44 | . . 5 6 . 23 10 Terrain Rammed . | . . . . . . . Walls Destroyed . | . . . . . . . Machines Disabled . | . . . . . . . Actions | -11 -10 -9 -9 -9 -8 -8 --------- Run | Scr Mat Mat Min Exi Min Mat Total 1351 | . 194 296 180 372 247 62 Wait 64 | . 3 20 1 . 35 5 Move 1175 | . 167 247 160 372 182 47 Hop . | . . . . . . . Pick Up 10 | . 6 2 . . 1 1 Fast Attach 10 | . 2 1 . . 4 3 Attach 8 | . . 4 2 . 2 . Detach 1 | . . . . . . 1 Swap 5 | . 2 1 1 . 1 . Drop 8 | . 5 . . . 3 . Fire 68 | . 9 21 14 . 19 5 Melee . | . . . . . . . Ram . | . . . . . . . Kick . | . . . . . . . Crush 2 | . . . 2 . . . Escape Stasis . | . . . . . . . Rewire . | . . . . . . . Trap . | . . . . . . . Miscellaneous . | . . . . . . . Route ------- -11/Scrapyard -10/Materials (discovered 2 exits: *Mat / [*Min]) -9/Materials (discovered 2 exits: [*Mat] / [*Min]) -9/Mines -9/Exiles -8/Mines -8/Materials History --------- Turn | Location | Event 1 | -11/Scrapyard | Discovered new exit (range 0) 1 | -11/Scrapyard | Entered Materials 7 | -10/Materials | Discovered new exit (range 16) 218 | -10/Materials | Discovered new exit (range 10) 245 | -10/Materials | Entered another Materials area 245 | -9/Materials | Evolved 2 slots: Propulsion x1, Utility x1 304 | -9/Materials | Build established: Mutant 436 | -9/Materials | Discovered new exit (range 14) 532 | -9/Materials | Lost 3 parts (3w) 569 | -9/Materials | Discovered new exit (range 9) 633 | -9/Materials | Entered Mines 675 | -9/Mines | Met a Derelict bent on vengeance 933 | -9/Mines | Deemed a non-threat by the Exiles lab entrance 933 | -9/Mines | Discovered new exit (range 5) 939 | -9/Mines | Entered Exiles 939 | -9/Exiles | Found Exiles lab abandoned 1514 | -9/Exiles | Discovered new exit (range 15) 1535 | -9/Exiles | Entered Mines 1744 | -8/Mines | Core integrity fell below 50% 1782 | -8/Mines | Lost 3 parts (1n2w) 1840 | -8/Mines | Discovered new exit (range 6) 1857 | -8/Mines | Entered Materials 1857 | -8/Materials | Evolved 2 slots: Propulsion x1, Utility x1 1895 | -8/Materials | Build established: Scavenger-Mutant 1939 | -8/Materials | Self-destructed Last Messages --------------- 01867_ Electrolysis Chamber disabled. 01870_ Acquired 11 matter. 01874_ Acquired Carbon-fiber Leg. 01898_ Acquired Adv. Treads. 01907_ W-25 Informer sends out distress signal. 01912_ Acquired EM Pulse Cannon. 01912_ ALERT: Hostiles spotted, dispatching reinforcements to Terminal M002. 01914_ Acquired EM Pulse Cannon. 01921_ S-10 Pest misfires. 01930_ K-01 Serf collects debris. 01932_ Destroyed Flight Unit. 01932_ Chain reaction triggered in Lgt. Ion Engine. 01932_ Flight Unit fried. 01932_ S-10 Pest destroyed. 01932_ Terminal disabled. 01934_ K-01 Serf collects debris. 01935_ Acquired 14 matter. 01937_ Aluminum Leg destroyed. 01938_ K-01 Serf destroyed. Map ----- +----------------------------------------------------+ | ????????????????????#########?#####??? | | ????????????????????# # # ### #??? | | ????????????????????# # #??? | | ????????????????????## "" # #??? | | ????????????????????# """ # #??? | | ????????????????????## " # #??? | | ????????????????????# + #??? | | ????????????????????## " " # #??? | | ?????????????????????# """ # #??? | | ?????????????????????# """ # #??? | | ?????????????????????# # #??? | | ?????????????????????########## #??? | | ??????????????????????????????# #??? | | ??????????????????????????????# #??? | | ?????????????????????????????## ##?? | | ???????????????????????????### #?? | | ??????????????????????????? # #?? | | ?????????????????????????? # #?? | | ?????????????????????????? # #?? | | ?????????????????????????? # #?? | | ?????????????????????????? ## ##?? | | ?????????????????????????? ## #??? | | ??????????????????###+#### ## #??? | | ??????????????????# #;;;### #??? | | ??????????????????# ##?? | | ??????????????????# @ "#?? | | ??????????????????# " ** "#?? | | ??????????????????# "^ * "#?? | | ??????????????????### ^ ]* T#?? | | ????????????????????# = "#?? | | ????????????????????#=%g ^ "#?? | | ????????????????????# "#?? | | ????????????????????# u ##?? | | ????????????????????# #??? | | ????????????????????#g #??? | | ??????????????????? + #############??? | | ?????????????????? #g???????????????? | | ????????????????? # ???????????????? | | ????????????????? ??# ???????????????? | | ????????????????????#????????????????? | | ?????????????????????????????????????? | | ?????????????????????????????????????? | | ?????????????????????????????????????? | | ?????????????????????????????????????? | | ?????????????????????????????????????? | | ?????????????????????????????????????? | | ?????????????????????????????????????? | | ?????????????????????????????????????? | | ?????????????????????????????????????? | | ?????????????????????????????????????? | +----------------------------------------------------+ Best States ------------- Heat Dissipation 31 Energy Generation 14 Energy Capacity 160 Matter Stores 300 Matter Capacity 300 Sight Range 16 Terrain Scan Density 10 Evasion (%) 55 Targeting Accuracy 11 Recoil Reduction 2 Item Schematics ----------------- None Robot Schematics ------------------ None Fabricated ------------ Nothing Alien Tech Used ----------------- None Achievements -------------- None Challenges ------------ None Game ------ Seed StealthBottomlessWings Manual? 0 Play Time 00:13:29 Cumulative 52.9 hours Start 2022.04.01 @ 19:59:45 End 2022.04.01 @ 20:12:14 Sessions 1 Manual Loads 0 Difficulty Rogue Special Mode None Game No. 78 Rogue 22 Adventurer 56 Explorer 0 Win Type - Total 4 Types 3/0/0/1/0/0/0/0/0 Lore% 46 Gallery% 53 Achievement% 54 Wizard Run 0 Options --------- ASCII 0 Keyboard 0 Movement Mouse Keybinds 0 Fullscreen 1 Font 20/SmallcapsGlow Map View 66x50 Tactical HUD 1 Map Filters NONE Filters NONE Steam 1 RUN: dee7d57b-d71f-4aa7-b4cf-8308e33ffa9e